[Event "7th Uppsala Young Champions"]
[Site "Uppsala"]
[Date "2020.10.28"]
[Round "8.20"]
[White "Skahlberg Bjerknes-Lima de Far, Warg"]
[Black "Ostensson, Julia"]
[Result "1-0"]
[ECO "E61"]
[WhiteElo "1759"]
[BlackElo "1562"]
[Annotator "NA RC"]
[PlyCount "87"]
[EventDate "2020.10.23"]
[EventType "swiss"]
[EventCountry "SWE"]
[SourceTitle "playchess.com"]
[Source "ChessBase"]
[SourceQuality "1"]
[TimeControl "5400+30"]

1. c4 {[%emt 0:00:00]} g6 {[%emt 0:00:00]} 2. g3 {[%emt 0:00:00]} Nf6 {[%emt 0:00:10]} 3. Bg2 {[%emt 0:00:26]} Bg7 {[%emt 0:00:06]} 4. Nc3 {[%emt 0:02:24]} O-O {[%emt 0:00:15]} 5. e3 {[%emt 0:03:23]} e5 {[%emt 0:01:55]} 6. Nge2 {[%emt 0:01:19]} d6 {[%emt 0:02:17]} 7. O-O {[%emt 0:03:22]} Nc6 {[%emt 0:01:28]} 8. d4 {[%emt 0:02:45]} Nh5 {[%emt 0:07:40]} 9. b3 {[%emt 0:06:18]} f5 {[%emt 0:01:27]} 10. dxe5 {[%emt 0:07:02]} dxe5 {[%emt 0:07:30]} 11. Bd5+ {[%emt 0:16:00]} Kh8 {[%emt 0:00:36]} 12. Ba3 {[%emt 0:00:28]} Ne7 {[%emt 0:20:34]} 13. Bg2 {[%emt 0:06:02]} Bd7 {[%emt 0:26:02]} 14. Nd5 {[%emt 0:05:12]} Rf7 {[%emt 0:07:13]} 15. Bxe7 {[%emt 0:07:17]} Rxe7 {[%emt 0:00:07]} 16. Nxe7 {[%emt 0:00:02]} Qxe7 {[%emt 0:00:08]} 17. Bxb7 {[%emt 0:02:27]} Rf8 {[%emt 0:00:07]} 18. Bh1 {[%emt 0:10:01]} f4 {[%emt 0:00:18]} 19. exf4 {[%emt 0:03:10]} exf4 {[%emt 0:00:13]} 20. Rc1 {[%emt 0:00:50]} Bh3 {[%emt 0:04:43]} 21. Re1 {[%emt 0:02:20]} Qg5 {[%emt 0:10:38]} 22. Qd3 {[%emt 0:13:31]} Be5 {[%emt 0:01:28]} 23. Nc3 {[%emt 0:04:05]} fxg3 {[%emt 0:05:55]} 24. hxg3 {[%emt 0:00:02]} Qf6 {[%emt 0:00:37]} 25. Ne4 {[%emt 0:01:28]} Qb6 {[%emt 0:00:14]} 26. c5 {[%emt 0:02:19]} Qa5 {[%emt 0:00:43]} 27. Ng5 {[%emt 0:00:40]} Bf5 {[%emt 0:00:33]} 28. Qd5 {[%emt 0:00:35]} Bf6 {[%emt 0:00:29]} 29. Ne4 {[%emt 0:00:30]} Rd8 {[%emt 0:00:30]} 30. Qc4 {[%emt 0:00:31]} Bg7 {[%emt 0:00:31]} 31. b4 {[%emt 0:00:26]} Qa3 {[%emt 0:00:30]} 32. Re3 {[%emt 0:00:24]} Qb2 {[%emt 0:00:24]} 33. Ng5 {[%emt 0:00:25]} Rf8 {[%emt 0:00:37]} 34. Rce1 {[%emt 0:00:35]} Qf6 {[%emt 0:00:13]} 35. Nf3 {[%emt 0:00:39]} Bg4 {[%emt 0:00:43]} 36. Qxg4 {[%emt 0:00:28]} Bh6 {[%emt 0:00:25]} 37. Re6 {[%emt 0:00:22]} Qc3 {[%emt 0:00:38]} 38. Qd4+ {[%emt 0:00:27]} Qxd4 {[%emt 0:00:12]} 39. Nxd4 {[%emt 0:00:02]} Bd2 {[%emt 0:00:31]} 40. R1e2 {[%emt 0:00:34]} Bxb4 {[%emt 0:00:09]} 41. Re8 {[%emt 0:00:22]} Bxc5 {[%emt 0:00:28]} 42. Rxf8+ {[%emt 0:00:16]} Bxf8 {[%emt 0:00:05]} 43. Re8 {[%emt 0:00:29]} Kg7 {[%emt 0:00:10]} 44. Ne6+ {[%emt 0:00:31]} 1-0

[Event "7th Uppsala Young Champions"]
[Site "Uppsala"]
[Date "2020.10.28"]
[Round "9.3"]
[White "Sorensen, Hampus"]
[Black "Storme, Isak"]
[Result "0-1"]
[ECO "D30"]
[WhiteElo "2393"]
[BlackElo "2393"]
[Annotator "ChessBase"]
[PlyCount "80"]
[EventDate "2020.10.23"]
[EventType "swiss"]
[EventCountry "SWE"]
[SourceTitle "playchess.com"]
[Source "ChessBase"]
[SourceQuality "1"]
[TimeControl "5400+30"]

1. d4 {[%emt 0:00:00]} d5 {[%emt 0:00:00]} 2. c4 {[%emt 0:00:11]} e6 {[%emt 0:00:00]} 3. Nf3 {[%emt 0:00:06]} Be7 {[%emt 0:00:00]} 4. Qc2 {[%emt 0:01:36]} Nf6 {[%emt 0:05:18]} 5. Bg5 {[%emt 0:00:57]} O-O {[%emt 0:00:34]} 6. e3 {[%emt 0:00:19]} h6 {[%emt 0:02:40]} 7. Bxf6 {[%emt 0:00:54]} Bxf6 {[%emt 0:00:13]} 8. h4 {[%emt 0:00:13]} Nc6 {[%emt 0:07:26]} 9. Nc3 {[%emt 0:01:47]} Nb4 {[%emt 0:01:08]} 10. Qd2 {[%emt 0:01:51]} c5 {[%emt 0:02:16]} 11. dxc5 {[%emt 0:09:19]} Qa5 {[%emt 0:09:42]} 12. cxd5 {[%emt 0:06:28]} exd5 {[%emt 0:04:30]} 13. Nxd5 {[%emt 0:21:19]} Nc2+ {[%emt 0:06:20]} 14. Kd1 {[%emt 0:00:31]} Qxd2+ {[%emt 0:00:12]} 15. Kxd2 {[%emt 0:00:28]} Nxa1 {[%emt 0:00:08]} 16. Nxf6+ {[%emt 0:00:07]} gxf6 {[%emt 0:00:06]} 17. Bd3 {[%emt 0:04:57]} Be6 {[%emt 0:01:09]} 18. Be4 {[%emt 0:18:24]} Rac8 {[%emt 0:21:51]} 19. b4 {[%emt 0:05:15]} b6 {[%emt 0:01:50]} 20. Bb7 {[%emt 0:06:09]} Rfd8+ {[%emt 0:01:12]} 21. Kc3 {[%emt 0:05:17]} Rc7 {[%emt 0:00:50]} 22. c6 {[%emt 0:01:09]} Bc8 {[%emt 0:00:20]} 23. Bxc8 {[%emt 0:07:29]} Rxc6+ {[%emt 0:00:26]} 24. Kb2 {[%emt 0:00:00]} Rc2+ {[%emt 0:02:25]} 25. Kxa1 {[%emt 0:00:14]} Rdxc8 {[%emt 0:00:07]} 26. Rf1 {[%emt 0:00:33]} Rc1+ {[%emt 0:03:46]} 27. Rxc1 {[%emt 0:00:00]} Rxc1+ {[%emt 0:00:07]} 28. Kb2 {[%emt 0:00:00]} Rf1 {[%emt 0:00:11]} 29. Nd4 {[%emt 0:01:12]} Rxf2+ {[%emt 0:00:08]} 30. Kb3 {[%emt 0:00:01]} Rxg2 {[%emt 0:00:21]} 31. a4 {[%emt 0:00:49]} Rg3 {[%emt 0:01:01]} 32. Kc4 {[%emt 0:01:18]} Rxe3 {[%emt 0:01:09]} 33. Kb5 {[%emt 0:00:12]} f5 {[%emt 0:00:43]} 34. Ka6 {[%emt 0:00:00]} f4 {[%emt 0:00:56]} 35. Nf5 {[%emt 0:01:57]} Re4 {[%emt 0:00:25]} 36. Kxa7 {[%emt 0:00:27]} Rxb4 {[%emt 0:00:19]} 37. Nxh6+ {[%emt 0:00:02]} Kf8 {[%emt 0:00:11]} 38. Ng4 {[%emt 0:00:08]} f3 {[%emt 0:00:13]} 39. Nh2 {[%emt 0:00:07]} f2 {[%emt 0:00:09]} 40. Ka6 {[%emt 0:00:06]} Rxa4+ {[%emt 0:00:08]} 0-1

[Event "7th Uppsala Young Champions"]
[Site "Uppsala"]
[Date "2020.10.28"]
[Round "9.4"]
[White "Kusa, Jakub"]
[Black "Muetsch, Annmarie"]
[Result "1-0"]
[ECO "B31"]
[WhiteElo "2233"]
[BlackElo "2226"]
[Annotator "ChessBase"]
[PlyCount "73"]
[EventDate "2020.10.23"]
[EventType "swiss"]
[EventCountry "SWE"]
[SourceTitle "playchess.com"]
[Source "ChessBase"]
[SourceQuality "1"]
[TimeControl "5400+30"]

1. e4 {[%emt 0:00:00]} c5 {[%emt 0:00:00]} 2. Nf3 {[%emt 0:00:00]} Nc6 {[%emt 0:00:02]} 3. Bb5 {[%emt 0:00:00]} g6 {[%emt 0:00:05]} 4. Bxc6 {[%emt 0:00:00]} dxc6 {[%emt 0:00:04]} 5. d3 {[%emt 0:00:11]} Bg7 {[%emt 0:00:05]} 6. h3 {[%emt 0:00:16]} e5 {[%emt 0:00:12]} 7. O-O {[%emt 0:00:09]} Qc7 {[%emt 0:00:33]} 8. a3 {[%emt 0:00:24]} Nf6 {[%emt 0:02:06]} 9. Nbd2 {[%emt 0:00:19]} Be6 {[%emt 0:02:35]} 10. b4 {[%emt 0:01:11]} cxb4 {[%emt 0:02:25]} 11. axb4 {[%emt 0:00:19]} h6 {[%emt 0:01:41]} 12. Bb2 {[%emt 0:00:41]} Nd7 {[%emt 0:00:52]} 13. Ra3 {[%emt 0:02:13]} O-O {[%emt 0:02:52]} 14. Qa1 {[%emt 0:01:06]} c5 {[%emt 0:08:15]} 15. b5 {[%emt 0:06:48]} b6 {[%emt 0:03:42]} 16. Nc4 {[%emt 0:01:32]} Bxc4 {[%emt 0:08:47]} 17. dxc4 {[%emt 0:00:13]} Rfe8 {[%emt 0:02:30]} 18. Rd1 {[%emt 0:01:22]} Nf8 {[%emt 0:14:20]} 19. Rad3 {[%emt 0:00:48]} f6 {[%emt 0:01:05]} 20. Rd5 {[%emt 0:06:11]} Red8 {[%emt 0:02:33]} 21. Qa3 {[%emt 0:05:51]} Ne6 {[%emt 0:02:10]} 22. Qd3 {[%emt 0:01:41]} Nd4 {[%emt 0:02:32]} 23. Nxd4 {[%emt 0:08:59]} cxd4 {[%emt 0:04:09]} 24. c3 {[%emt 0:01:04]} Rxd5 {[%emt 0:08:14]} 25. cxd5 {[%emt 0:01:11]} dxc3 {[%emt 0:01:45]} 26. Rc1 {[%emt 0:03:51]} Bf8 {[%emt 0:02:24]} 27. Rxc3 {[%emt 0:01:18]} Bc5 {[%emt 0:00:35]} 28. Ba3 {[%emt 0:02:24]} Qd6 {[%emt 0:00:10]} 29. Bxc5 {[%emt 0:00:09]} bxc5 {[%emt 0:00:04]} 30. Qc4 {[%emt 0:00:37]} a6 {[%emt 0:04:27]} 31. Qxc5 {[%emt 0:02:36]} Qxc5 {[%emt 0:00:07]} 32. Rxc5 {[%emt 0:00:06]} axb5 {[%emt 0:00:04]} 33. Rxb5 {[%emt 0:00:09]} Ra1+ {[%emt 0:00:25]} 34. Kh2 {[%emt 0:00:07]} Rd1 {[%emt 0:00:27]} 35. f3 {[%emt 0:00:20]} f5 {[%emt 0:01:08]} 36. Rb6 {[%emt 0:01:36]} Kg7 {[%emt 0:00:40]} 37. Re6 {[%emt 0:00:29]} 1-0

[Event "7th Uppsala Young Champions"]
[Site "Uppsala"]
[Date "2020.10.28"]
[Round "9.5"]
[White "Soderstrom, Adrian"]
[Black "Kucuksari, Kaan"]
[Result "0-1"]
[ECO "A80"]
[WhiteElo "2168"]
[BlackElo "2384"]
[Annotator "ChessBase"]
[PlyCount "120"]
[EventDate "2020.10.23"]
[EventType "swiss"]
[EventCountry "SWE"]
[SourceTitle "playchess.com"]
[Source "ChessBase"]
[SourceQuality "1"]
[TimeControl "5400+30"]

1. d4 {[%emt 0:00:00]} f5 {[%emt 0:00:00]} 2. Bg5 {[%emt 0:01:41]} h6 {[%emt 0:00:00]} 3. Bh4 {[%emt 0:00:22]} g5 {[%emt 0:00:00]} 4. e4 {[%emt 0:00:37]} Rh7 {[%emt 0:00:00]} 5. Qh5+ {[%emt 0:00:15]} Rf7 {[%emt 0:00:00]} 6. Nf3 {[%emt 0:00:12]} Nf6 {[%emt 0:00:00]} 7. Qg6 {[%emt 0:00:02]} Nc6 {[%emt 0:01:30]} 8. e5 {[%emt 0:04:26]} Nh7 {[%emt 0:13:25]} 9. d5 {[%emt 0:07:08]} e6 {[%emt 0:01:40]} 10. dxc6 {[%emt 0:00:48]} gxh4 {[%emt 0:00:02]} 11. cxd7+ {[%emt 0:04:24]} Bxd7 {[%emt 0:00:01]} 12. Bc4 {[%emt 0:05:52]} Qe7 {[%emt 0:00:30]} 13. Qh5 O-O-O {[%emt 0:00:30]} 14. Qxh4 {[%emt 0:01:00]} Ng5 {[%emt 0:14:07]} 15. Nxg5 {[%emt 0:36:34]} hxg5 {[%emt 0:01:23]} 16. Qg3 {[%emt 0:01:33]} f4 {[%emt 0:10:27]} 17. Qa3 {[%emt 0:06:15]} Rf5 {[%emt 0:00:30]} 18. O-O {[%emt 0:00:30]} Qxa3 {[%emt 0:00:30]} 19. Nxa3 {[%emt 0:00:30]} Rxe5 {[%emt 0:00:30]} 20. Rfe1 {[%emt 0:00:30]} Rxe1+ {[%emt 0:00:30]} 21. Rxe1 {[%emt 0:00:30]} Bg7 {[%emt 0:08:20]} 22. c3 {[%emt 0:00:55]} e5 {[%emt 0:00:30]} 23. h3 {[%emt 0:00:30]} c6 {[%emt 0:04:40]} 24. Bb3 {[%emt 0:09:34]} b5 {[%emt 0:02:00]} 25. f3 {[%emt 0:03:13]} Kc7 {[%emt 0:01:27]} 26. Kf2 {[%emt 0:00:42]} a5 {[%emt 0:00:52]} 27. Bc2 {[%emt 0:04:03]} Be6 {[%emt 0:02:57]} 28. Bb3 {[%emt 0:01:16]} Bd7 {[%emt 0:01:42]} 29. Bc2 {[%emt 0:00:05]} Rb8 {[%emt 0:00:56]} 30. Nb1 {[%emt 0:00:22]} b4 {[%emt 0:02:13]} 31. c4 {[%emt 0:00:22]} Rd8 {[%emt 0:02:25]} 32. Rd1 {[%emt 0:00:44]} e4 {[%emt 0:02:31]} 33. Bxe4 {[%emt 0:04:54]} Bxb2 {[%emt 0:00:02]} 34. Ke2 {[%emt 0:00:47]} a4 {[%emt 0:01:37]} 35. Bc2 {[%emt 0:01:10]} b3 {[%emt 0:01:34]} 36. axb3 {[%emt 0:00:42]} a3 {[%emt 0:00:00]} 37. Nxa3 {[%emt 0:01:41]} Bxa3 {[%emt 0:00:02]} 38. Be4 {[%emt 0:01:31]} Rb8 {[%emt 0:00:29]} 39. Rb1 {[%emt 0:00:27]} Bb4 {[%emt 0:02:46]} 40. Ra1 {[%emt 0:00:20]} Bc5 {[%emt 0:00:07]} 41. Ra5 {[%emt 0:00:49]} Kd6 {[%emt 0:00:02]} 42. Bc2 {[%emt 0:00:18]} Be6 {[%emt 0:02:00]} 43. Ra6 {[%emt 0:00:18]} Bb6 {[%emt 0:05:23]} 44. Be4 {[%emt 0:00:16]} Bc8 {[%emt 0:02:25]} 45. Ra2 {[%emt 0:00:11]} Bc5 {[%emt 0:05:25]} 46. Bc2 {[%emt 0:00:06]} Bb4 {[%emt 0:02:02]} 47. Be4 {[%emt 0:00:20]} Kc5 {[%emt 0:01:43]} 48. Ra7 {[%emt 0:00:30]} Bb7 {[%emt 0:00:31]} 49. Bd3 {[%emt 0:00:40]} Re8+ {[%emt 0:01:36]} 50. Be4 {[%emt 0:00:01]} Kb6 {[%emt 0:00:17]} 51. Ra1 {[%emt 0:00:36]} c5 {[%emt 0:00:44]} 52. Rb1 {[%emt 0:00:37]} Bxe4 {[%emt 0:00:44]} 53. fxe4 {[%emt 0:00:01]} Rxe4+ {[%emt 0:00:08]} 54. Kf3 {[%emt 0:00:06]} Re3+ {[%emt 0:00:31]} 55. Kg4 {[%emt 0:00:01]} Rg3+ {[%emt 0:00:06]} 56. Kf5 {[%emt 0:00:42]} Rxg2 {[%emt 0:00:02]} 57. Rf1 {[%emt 0:00:37]} Bd2 {[%emt 0:00:42]} 58. Rd1 {[%emt 0:00:25]} f3 {[%emt 0:01:21]} 59. Ke4 {[%emt 0:00:51]} f2 {[%emt 0:00:15]} 60. Rf1 {[%emt 0:01:13]} Be1 {[%emt 0:00:10]} 0-1

[Event "7th Uppsala Young Champions"]
[Site "Uppsala"]
[Date "2020.10.28"]
[Round "9.9"]
[White "Nemec, Jachym"]
[Black "Heimisson, Hilmir Freyr"]
[Result "0-1"]
[ECO "E47"]
[WhiteElo "2246"]
[BlackElo "2352"]
[Annotator "NA"]
[PlyCount "70"]
[EventDate "2020.10.23"]
[EventType "swiss"]
[EventCountry "SWE"]
[SourceTitle "playchess.com"]
[Source "ChessBase"]
[SourceQuality "1"]
[TimeControl "5400+30"]

{[%evp 8,51,18,0,3,0,47,33,167,168,173,165,166,150,172,156,154,170,173,158,168,176,176,185,158,117,139,134,32767,32767,32767,32767,32767,32767,32767,32767,32767,32767,142,122,143,68,78,39,83,-341]} 1. d4 {[%emt 0:00:00]} Nf6 {[%emt 0:00:00]} 2. c4 {[%emt 0:00:00]} e6 {[%emt 0:00:00]} 3. Nc3 {[%emt 0:00:00]} Bb4 {[%emt 0:00:00]} 4. e3 {[%emt 0:00:00]} O-O {[%emt 0:00:00]} 5. Bd3 {[%emt 0:00:04]} b6 {[%emt 0:00:03]} 6. Nge2 {[%emt 0:00:22]} d6 {[%emt 0:01:29]} 7. O-O {[%emt 0:00:16]} e5 {[%emt 0:00:55]} (7... d5 $11 {and Black has nothing to worry.}) 8. Nd5 {[%emt 0:04:42]} Nxd5 {[%emt 0:07:51]} 9. cxd5 {[%emt 0:00:07]} Ba5 {[%emt 0:04:40]} 10. a3 {[%emt 0:01:21]} b5 {[%emt 0:02:13]} 11. b4 {[%emt 0:00:09]} Bb6 {[%emt 0:00:05]} 12. Bb2 {[%emt 0:01:17]} Qe8 {[%emt 0:00:56]} 13. Qc2 {[%emt 0:04:01]} h6 {[%emt 0:02:35]} 14. dxe5 {[%emt 0:02:08]} dxe5 {[%emt 0:00:06]} 15. Nc3 {[%emt 0:08:36]} Bd7 {[%emt 0:05:20]} 16. Kh1 {[%emt 0:06:20]} f5 {[%emt 0:03:46]} 17. a4 {[%emt 0:00:26]} (17. f4 $18 e4 18. Nxe4 fxe4 19. Bxe4) 17... bxa4 {[%emt 0:09:45]} 18. Nxa4 {[%emt 0:01:21]} Bxa4 {[%emt 0:00:11]} 19. Rxa4 {[%emt 0:00:09]} e4 {[%emt 0:02:28]} 20. Bc4 {[%emt 0:00:16]} Kh8 {[%emt 0:00:19]} 21. d6 {[%emt 0:16:11]} Nd7 {[%emt 0:10:26]} 22. Rd1 {[%emt 0:06:03]} c6 {[%emt 0:15:18]} (22... cxd6 $14 23. Rxd6 Nf6) 23. Qc3 {[%emt 0:08:13]} Qg6 {[%emt 0:06:02] [#]} 24. Be6 {[%emt 0:06:28]} (24. g3 $1 $16) 24... Nf6 {[%emt 0:00:18]} 25. d7 {[%emt 0:03:51]} Ng4 {[%emt 0:12:45] [#]} 26. Rd6 $19 {[%emt 0:10:45]} (26. Rf1 $1 $16 {and life is bright.} Bc7 27. h3 (27. Qxc6 Bxh2 28. d8=R Rfxd8 $19)) 26... Nxf2+ {[%emt 0:08:51]} 27. Kg1 {[%emt 0:00:15]} Ng4 {[%emt 0:00:04]} 28. Bb3 {[%emt 0:12:41]} Bxe3+ {[%emt 0:04:27]} 29. Kh1 {[%emt 0:00:01]} Nf2+ {[%emt 0:00:40]} 30. Kg1 {[%emt 0:00:06]} Nd3+ {[%emt 0:00:29]} 31. Kh1 {[%emt 0:01:20]} Qg5 {[%emt 0:01:15]} 32. d8=Q {[%emt 0:03:15]} Rfxd8 {[%emt 0:01:31]} 33. Qxc6 {[%emt 0:03:11]} Nxb2 {[%emt 0:00:35]} 34. Ra6 {[%emt 0:01:02]} Rxd6 {[%emt 0:00:54]} 35. Qxd6 {[%emt 0:00:21]} Rd8 {[%emt 0:00:31]} 0-1

[Event "7th Uppsala Young Champions"]
[Site "Uppsala"]
[Date "2020.10.28"]
[Round "9.10"]
[White "Kruckenhauser, Arthur"]
[Black "Radeva, Viktoria"]
[Result "1/2-1/2"]
[ECO "D02"]
[WhiteElo "2301"]
[BlackElo "2263"]
[Annotator "ChessBase"]
[PlyCount "79"]
[EventDate "2020.10.23"]
[EventType "swiss"]
[EventCountry "SWE"]
[SourceTitle "playchess.com"]
[Source "ChessBase"]
[SourceQuality "1"]
[TimeControl "5400+30"]

1. d4 {[%emt 0:00:00]} d5 {[%emt 0:00:00]} 2. Bf4 {[%emt 0:00:04]} Nf6 {[%emt 0:00:00]} 3. e3 {[%emt 0:00:07]} e6 {[%emt 0:00:00]} 4. Nf3 {[%emt 0:00:22]} Bd6 {[%emt 0:00:20]} 5. Bg3 {[%emt 0:01:20]} O-O {[%emt 0:01:22]} 6. Nbd2 {[%emt 0:01:22]} c5 {[%emt 0:03:30]} 7. c3 {[%emt 0:00:18]} Qc7 {[%emt 0:01:37]} 8. Bd3 {[%emt 0:03:20]} Nbd7 {[%emt 0:01:44]} 9. O-O {[%emt 0:02:53]} Bxg3 {[%emt 0:07:40]} 10. hxg3 {[%emt 0:00:32]} e5 {[%emt 0:01:08]} 11. Nxe5 {[%emt 0:05:15]} Nxe5 {[%emt 0:00:17]} 12. dxe5 {[%emt 0:00:04]} Qxe5 {[%emt 0:00:06]} 13. Qf3 {[%emt 0:03:02]} b6 {[%emt 0:06:53]} 14. Qf4 {[%emt 0:03:37]} Qe7 {[%emt 0:05:19]} 15. e4 {[%emt 0:04:03]} dxe4 {[%emt 0:06:40]} 16. Nxe4 {[%emt 0:00:19]} Nd5 {[%emt 0:00:40]} 17. Qg5 {[%emt 0:04:01]} Qxg5 {[%emt 0:04:37]} 18. Nxg5 {[%emt 0:00:14]} h6 {[%emt 0:00:08]} 19. Bh7+ {[%emt 0:03:58]} Kh8 {[%emt 0:00:11]} 20. Be4 {[%emt 0:00:15]} Bb7 {[%emt 0:03:11]} 21. Rad1 {[%emt 0:05:29]} Rad8 {[%emt 0:02:20]} 22. Nf3 {[%emt 0:01:45]} Rfe8 {[%emt 0:03:25]} 23. Rfe1 {[%emt 0:04:30]} Bc6 {[%emt 0:03:20]} 24. g4 {[%emt 0:01:23]} Kg8 {[%emt 0:04:02]} 25. g5 {[%emt 0:03:32]} hxg5 {[%emt 0:01:57]} 26. Nxg5 {[%emt 0:00:16]} Kf8 {[%emt 0:02:51]} 27. Nh7+ {[%emt 0:02:31]} Kg8 {[%emt 0:00:12]} 28. Ng5 {[%emt 0:00:07]} Kf8 {[%emt 0:01:13]} 29. f3 {[%emt 0:02:29]} f6 {[%emt 0:01:39]} 30. Nh3 {[%emt 0:00:56]} Kf7 {[%emt 0:01:23]} 31. Kf2 {[%emt 0:03:47]} g5 {[%emt 0:03:50]} 32. Rd3 {[%emt 0:03:15]} Ne7 {[%emt 0:02:43]} 33. Red1 {[%emt 0:01:46]} Rxd3 {[%emt 0:00:20]} 34. Bxd3 {[%emt 0:00:23]} Bd5 {[%emt 0:01:36]} 35. a3 {[%emt 0:02:16]} Bb3 {[%emt 0:01:40]} 36. Rd2 {[%emt 0:01:33]} Nc6 {[%emt 0:01:13]} 37. Be4 {[%emt 0:01:32]} Rd8 {[%emt 0:01:33]} 38. Rxd8 {[%emt 0:01:27]} Nxd8 {[%emt 0:00:08]} 39. f4 {[%emt 0:00:30]} gxf4 {[%emt 0:00:34]} 40. Nxf4 {[%emt 0:00:39]} 1/2-1/2

[Event "7th Uppsala Young Champions"]
[Site "Uppsala"]
[Date "2020.10.28"]
[Round "9.13"]
[White "Rozman, Monika"]
[Black "Crevatin, Leo"]
[Result "1/2-1/2"]
[ECO "B19"]
[WhiteElo "2129"]
[BlackElo "2181"]
[Annotator "NA"]
[PlyCount "93"]
[EventDate "2020.10.23"]
[EventType "swiss"]
[EventCountry "SWE"]
[SourceTitle "playchess.com"]
[Source "ChessBase"]
[SourceQuality "1"]
[TimeControl "5400+30"]

1. e4 {[%emt 0:00:08]} c6 {[%emt 0:00:00]} 2. d4 {[%emt 0:00:12]} d5 {[%emt 0:00:00]} 3. Nc3 {[%emt 0:00:09]} dxe4 {[%emt 0:00:00]} 4. Nxe4 {[%emt 0:00:06]} Bf5 {[%emt 0:00:00]} 5. Ng3 {[%emt 0:00:04]} Bg6 {[%emt 0:00:00]} 6. h4 {[%emt 0:00:12]} h6 {[%emt 0:00:06]} 7. h5 {[%emt 0:00:07]} Bh7 {[%emt 0:00:03]} 8. Nf3 {[%emt 0:00:04]} Nf6 {[%emt 0:01:01]} 9. Bd3 {[%emt 0:00:32]} Bxd3 {[%emt 0:00:08]} 10. Qxd3 {[%emt 0:00:06]} e6 {[%emt 0:00:06]} 11. Bd2 {[%emt 0:01:02]} c5 {[%emt 0:00:08]} 12. Ne4 {[%emt 0:04:11]} Nc6 {[%emt 0:00:40]} 13. Nxc5 {[%emt 0:03:10]} Bxc5 {[%emt 0:00:51]} 14. dxc5 {[%emt 0:00:09]} Qxd3 $11 {keeps the balance.} (14... Qd5 {[%emt 1:33:57]}) 15. cxd3 {[%emt 1:27:18]} O-O-O {[%emt 0:00:30]} 16. Ke2 {[%emt 0:00:00]} Rd5 {[%emt 0:01:15]} 17. b4 {[%emt 0:00:00]} Rhd8 {[%emt 0:00:39]} 18. b5 {[%emt 0:00:00]} Nd4+ {[%emt 0:00:07]} 19. Nxd4 {[%emt 0:00:00]} Rxd4 {[%emt 0:00:02]} 20. b6 {[%emt 0:00:00]} a6 {[%emt 0:11:42]} 21. Rh3 {[%emt 0:00:00]} R4d5 {[%emt 0:07:57]} 22. Rc1 {[%emt 0:00:00]} Kd7 {[%emt 0:02:50]} 23. g4 {[%emt 0:00:00]} Kc6 {[%emt 0:03:56]} 24. Rf3 {[%emt 0:00:00]} R8d7 {[%emt 0:14:30]} 25. Rxf6 {[%emt 0:00:00]} gxf6 {[%emt 0:00:28]} 26. Bxh6 {[%emt 0:00:00]} f5 {[%emt 0:10:07]} 27. Bg7 {[%emt 0:00:00]} fxg4 {[%emt 0:07:27]} 28. Rh1 {[%emt 0:00:00]} f6 $4 {[%emt 0:06:53]} ({Inferior is} 28... Rxc5 29. h6 $16) (28... Rxd3 $19 29. h6 Rd2+ 30. Ke3 R7d3+ 31. Kf4 Rxf2+ 32. Kxg4 Rg2+ 33. Kh4 Rd8) 29. h6 {[%emt 0:00:00]} Rxg7 {[%emt 0:00:12]} 30. hxg7 {[%emt 0:00:00]} Rg5 {[%emt 0:00:02]} 31. Rh7 {[%emt 0:00:00]} e5 {[%emt 0:02:01] [#]} 32. g8=Q $2 {[%emt 0:00:00]} ({Only move:} 32. d4 $1 $18) 32... Rxg8 {[%emt 0:00:03]} 33. Rc7+ {[%emt 0:00:00]} Kd5 {[%emt 0:01:06]} 34. Rxb7 {[%emt 0:00:00]} Kxc5 {[%emt 0:00:01]} 35. Rf7 {[%emt 0:00:00]} Kxb6 {[%emt 0:00:16]} 36. Rxf6+ {[%emt 0:00:00]} Kb7 {[%emt 0:00:47]} 37. Ke3 {[%emt 0:00:00]} g3 {[%emt 0:00:39]} 38. fxg3 {[%emt 0:00:00]} Rxg3+ {[%emt 0:00:02]} 39. Ke4 {[%emt 0:00:00]} Rg2 {[%emt 0:00:11]} 40. Kxe5 {[%emt 0:00:00]} Rxa2 {[%emt 0:00:05]} 41. d4 {[%emt 0:00:00]} Rd2 {[%emt 0:09:25]} 42. d5 {[%emt 0:00:00]} a5 {[%emt 0:02:25]} 43. Kd6 {[%emt 0:00:00]} a4 {[%emt 0:02:12]} 44. Rf4 {[%emt 0:00:00]} a3 {[%emt 0:01:06]} 45. Rb4+ {[%emt 0:00:00]} Kc8 {[%emt 0:00:31]} 46. Rc4+ {[%emt 0:00:00]} Kb8 $11 {[%emt 0:00:44]} 47. Rb4+ {[%emt 0:00:00]} 1/2-1/2

[Event "7th Uppsala Young Champions"]
[Site "Uppsala"]
[Date "2020.10.28"]
[Round "9.14"]
[White "Olsson, William"]
[Black "Brozka, Karel"]
[Result "1-0"]
[ECO "A38"]
[WhiteElo "2192"]
[BlackElo "2216"]
[Annotator "ChessBase"]
[PlyCount "73"]
[EventDate "2020.10.23"]
[EventType "swiss"]
[EventCountry "SWE"]
[SourceTitle "playchess.com"]
[Source "ChessBase"]
[SourceQuality "1"]
[TimeControl "5400+30"]

1. c4 {[%emt 0:00:00]} Nf6 {[%emt 0:00:00]} 2. Nc3 {[%emt 0:00:00]} g6 {[%emt 0:00:00]} 3. g3 {[%emt 0:00:00]} Bg7 {[%emt 0:00:07]} 4. Bg2 {[%emt 0:00:00]} c5 {[%emt 0:00:20]} 5. Nf3 {[%emt 0:00:16]} Nc6 {[%emt 0:00:35]} 6. O-O {[%emt 0:00:07]} d6 {[%emt 0:00:09]} 7. Rb1 {[%emt 0:00:11]} O-O {[%emt 0:01:33]} 8. a3 {[%emt 0:00:08]} a5 {[%emt 0:05:22]} 9. d3 {[%emt 0:00:24]} e5 {[%emt 0:03:32]} 10. Ne1 {[%emt 0:01:33]} Be6 {[%emt 0:02:26]} 11. Bg5 {[%emt 0:02:22]} h6 {[%emt 0:14:59]} 12. Bxf6 {[%emt 0:00:09]} Bxf6 {[%emt 0:00:30]} 13. b3 {[%emt 0:04:02]} Bg7 {[%emt 0:10:47]} 14. Nc2 {[%emt 0:02:49]} f5 {[%emt 0:00:51]} 15. Qd2 {[%emt 0:03:32]} f4 {[%emt 0:13:45]} 16. b4 {[%emt 0:04:07]} axb4 {[%emt 0:00:52]} 17. axb4 {[%emt 0:00:07]} cxb4 {[%emt 0:01:05]} 18. Nxb4 {[%emt 0:00:35]} Nd4 {[%emt 0:01:21]} 19. Bxb7 {[%emt 0:10:37]} f3 {[%emt 0:03:24]} 20. Nc6 {[%emt 0:05:04]} Nxc6 {[%emt 0:08:54]} 21. Bxc6 {[%emt 0:00:10]} fxe2 {[%emt 0:00:34]} 22. Qxe2 {[%emt 0:00:06]} Rc8 {[%emt 0:01:23]} 23. Bg2 {[%emt 0:01:07]} Qa5 {[%emt 0:00:51]} 24. Nd5 {[%emt 0:02:30]} Bxd5 {[%emt 0:01:01]} 25. Bxd5+ {[%emt 0:00:11]} Kh8 {[%emt 0:00:41]} 26. Qg4 {[%emt 0:02:37]} g5 {[%emt 0:01:48]} 27. Be4 {[%emt 0:01:23]} Qc5 {[%emt 0:01:20]} 28. Rb5 {[%emt 0:01:17]} Qc7 {[%emt 0:01:41]} 29. Rb7 {[%emt 0:01:52]} Qd8 {[%emt 0:00:05]} 30. h4 {[%emt 0:01:17]} Qf6 {[%emt 0:01:25]} 31. hxg5 {[%emt 0:00:53]} Qxg5 {[%emt 0:03:31]} 32. Qxg5 {[%emt 0:00:13]} hxg5 {[%emt 0:00:01]} 33. Kg2 {[%emt 0:00:07]} Kg8 {[%emt 0:02:10]} 34. Rh1 {[%emt 0:00:20]} Rf6 {[%emt 0:00:06]} 35. Bd5+ {[%emt 0:00:17]} Kf8 {[%emt 0:00:05]} 36. Rh7 {[%emt 0:00:07]} Rg6 {[%emt 0:00:45]} 37. Rf7+ {[%emt 0:00:06]} 1-0